fUST/lending_fUST_20250521
["ID","MTS","AMOUNT","RATE_DAILY","PERIOD"]
[361781881,1747775454046,-156.051776,0.0002466,7]
[361781882,1747775454055,-156.051776,0.0002466,7]
[361781883,1747775454065,-151.0,0.0002466,7]
[361781884,1747775454074,-151.0,0.0002466,7]
[361781885,1747775454084,-197.672457,0.0002466,7]
[361781886,1747775454094,-151.0,0.0002466,7]
[361781887,1747775454103,-197.672457,0.0002466,7]
[361781888,1747775454113,-151.0,0.0002466,7]
[361781889,1747775454123,-151.0,0.0002466,7]
[361781890,1747775454132,-393.73669,0.0002466,7]
[361781891,1747775454143,-649.637505,0.0002466,7]
[361781892,1747775454152,-649.637505,0.0002466,7]
[361781893,1747775454161,-393.73669,0.0002466,7]
[361781894,1747775454171,-402.495642,0.0002466,7]
[361781895,1747775454181,-402.495642,0.0002466,7]
[361781896,1747775454190,-151.0,0.0002466,7]
[361781897,1747775454200,-1219.50057183,0.00024679,17]
[361781898,1747775454212,-200.0,0.00024681,120]
[361781899,1747775454222,-28575.93,0.000247,2]
[361781900,1747775454231,-3417.97,0.000247,7]
[361781901,1747775454241,-405110.1,0.000247,7]
[361781903,1747775454252,-1593.32,0.000247,7]
[361781905,1747775454261,-154247.56,0.000247,2]
[361781906,1747775454270,-151.0,0.000247,7]
[361781908,1747775454280,-151.0,0.000247,7]
[361781910,1747775454289,-151.0,0.000247,7]
[361781912,1747775454299,-475.734946,0.000247,7]
[361781914,1747775454308,-475.734946,0.000247,7]
[361781916,1747775454317,-151.0,0.000247,7]
[361781918,1747775454327,-151.0,0.000247,7]
[361781920,1747775454336,-151.0,0.000247,7]
[361781922,1747775454345,-151.0,0.000247,7]
[361781924,1747775454355,-162.052456,0.000247,7]
[361781926,1747775454364,-162.052456,0.000247,7]
[361781928,1747775454374,-236.353757,0.000247,7]
[361781930,1747775454383,-236.353757,0.000247,7]
[361781931,1747775454392,-493.636469,0.000247,7]
[361781933,1747775454401,-493.636469,0.000247,7]
[361781935,1747775454411,-243.490659,0.000247,7]
[361781937,1747775454420,-236.056377,0.000247,7]
[361781939,1747775454430,-236.056377,0.000247,7]
[361781941,1747775454439,-151.0,0.000247,7]
[361781943,1747775454448,-270.370646,0.000247,7]
[361781945,1747775454457,-270.370646,0.000247,7]
[361781947,1747775454468,-156.051776,0.000247,7]
[361781949,1747775454477,-156.051776,0.000247,7]
[361781951,1747775454487,-151.0,0.000247,7]
[361781953,1747775454496,-197.672457,0.000247,7]
[361781955,1747775454506,-151.653393,0.000247,7]
[361781957,1747775454515,-197.672457,0.000247,7]
[361781959,1747775454525,-151.0,0.000247,7]
[361781961,1747775454534,-151.0,0.000247,7]
[361781963,1747775454544,-393.73669,0.000247,7]
[361781965,1747775454553,-649.637505,0.000247,7]
[361781967,1747775454562,-649.637505,0.000247,7]
[361781968,1747775454572,-393.73669,0.000247,7]
[361781970,1747775454583,-402.495642,0.000247,7]
[361781972,1747775454592,-402.495642,0.000247,7]
[361781974,1747775454601,-151.0,0.000247,7]
[361781976,1747775454610,-7879.52650923,0.00024742,2]
[361781978,1747775454621,-12848.72686943,0.00024774,2]
[361781980,1747775454630,-46696.0,0.000248,2]
[361781982,1747775454640,-500.0,0.000248,2]
[361781984,1747775454649,-499.20123191,0.000248,2]
[361781986,1747775454659,-279.080172,0.000248,7]
[361781988,1747775454668,-151.0,0.000248,7]
[361781990,1747775454677,-151.0,0.000248,7]
[361781992,1747775454686,-475.734946,0.000248,7]
[361781994,1747775454695,-475.734946,0.000248,7]
[361781996,1747775454704,-151.0,0.000248,7]
[361781998,1747775454714,-493.636469,0.000248,7]
[361782000,1747775454723,-493.636469,0.000248,7]
[361782002,1747775454731,-151.0,0.000248,7]
[361782004,1747775454741,-270.370646,0.000248,7]
[361782006,1747775454750,-270.37064,0.000248,7]
[361782008,1747775454760,-156.051776,0.000248,7]
[361782010,1747775454769,-156.051775,0.000248,7]
[361782011,1747775454778,-151.0,0.000248,7]
[361782013,1747775454787,-197.672457,0.000248,7]
[361782015,1747775454797,-197.672455,0.000248,7]
[361782017,1747775454806,-198802.579004,0.000248,2]
[361782019,1747775454815,-151.0,0.000248,7]
[361782021,1747775454825,-649.637505,0.000248,7]
[361782023,1747775454834,-393.73669,0.000248,7]
[361782025,1747775454844,-393.73669,0.000248,7]
[361782027,1747775454853,-649.637505,0.000248,7]
[361782029,1747775454863,-402.495642,0.000248,7]
[361782031,1747775454872,-402.495642,0.000248,7]
[361782033,1747775454881,-151.0,0.000248,7]
[361782035,1747775454892,-2040.18,0.00024812,2]
[361782037,1747775454901,-236.353757,0.00024823,7]
[361782038,1747775454911,-236.353757,0.00024823,7]
[361782041,1747775454921,-236.056377,0.00024823,7]
[361782042,1747775454930,-236.056377,0.00024823,7]
[361782044,1747775454940,-750.0,0.00024834,30]
[361782046,1747775454949,-250389.579229,0.0002488,2]
[361782048,1747775454959,-1001.51271476,0.00024889,20]
[361782050,1747775454968,-678.30345731,0.000249,15]
[361782052,1747775454978,-9807.94,0.000249,30]
[361782054,1747775454987,-2000.0,0.000249,2]
[361782056,1747775454997,-151.0,0.000249,7]
[361782058,1747775455007,-155.993379,0.000249,7]
[361782060,1747775455017,-475.734946,0.000249,7]
[361782062,1747775455026,-475.734946,0.000249,7]
[361782064,1747775455035,-151.0,0.000249,7]
[361782066,1747775455045,-151.0,0.000249,7]
[361782068,1747775455054,-151.0,0.000249,7]
[361782070,1747775455064,-151.0,0.000249,7]
[361782072,1747775455074,-182.390255,0.000249,7]
[361782074,1747775455083,-162.052456,0.000249,7]
[361782076,1747775455093,-162.052456,0.000249,7]
[361782078,1747775455103,-162.052456,0.000249,7]
[361782080,1747775455112,-162.052456,0.000249,7]
[361782081,1747775455121,-236.353757,0.000249,7]
[361782083,1747775455131,-236.353766,0.000249,7]
[361782084,1747775455141,-493.636469,0.000249,7]
[361782085,1747775455151,-493.636469,0.000249,7]
[361782086,1747775455161,-236.056377,0.000249,7]
[361782087,1747775455170,-236.056385,0.000249,7]
[361782088,1747775455180,-2000.0,0.000249,2]
[361782089,1747775455189,-228.241496,0.000249,7]
[361782090,1747775455201,-541125.7013486,0.000249,2]
[361782096,1747775457217,-300.0,0.00016437,2]
[361782097,1747775457226,-160.0,0.00017159,2]
[361782098,1747775457236,-158.18215587,0.00017159,2]
[361782099,1747775457249,-54.20502691,0.00017159,2]
[361782100,1747775457258,-430.0,0.0001726,2]
[361782101,1747775457267,-430.0,0.00017534,2]
[361782102,1747775457277,-430.0,0.00017808,2]
[361782103,1747775457286,-420.0,0.00017963,2]
[361782104,1747775457296,-430.0,0.00018082,2]
[361782105,1747775457305,-430.0,0.00018356,2]
[361782106,1747775457315,-430.0,0.00018356,2]
[361782107,1747775457324,-430.0,0.0001863,2]
[361782108,1747775457333,-430.0,0.0001863,2]
[361782109,1747775457343,-430.0,0.00018904,2]
[361782110,1747775457352,-430.0,0.00018904,2]
[361782111,1747775457361,-430.0,0.00019178,2]
[361782112,1747775457371,-430.0,0.00019178,2]
[361782113,1747775457380,-430.0,0.00019452,2]
[361782114,1747775457392,-430.0,0.00019452,2]
[361782115,1747775457402,-399.57576811,0.00019726,2]
[361782116,1747775457411,-430.0,0.00019726,2]
[361782117,1747775457421,-430.0,0.0002,2]
[361782118,1747775457431,-430.0,0.00020273,2]
[361782119,1747775457440,-430.0,0.00020547,2]
[361782120,1747775457449,-378.08,0.00020821,2]
[361782121,1747775457459,-1590.993174,0.00021973,7]
[361782122,1747775457468,-302.72728098,0.00021973,7]
[361782123,1747775457480,-1288.26589302,0.00021973,7]
[361782124,1747775457490,-573.65,0.00022739,2]
[361782125,1747775457500,-1590.993174,0.00022899,7]
[361782126,1747775457509,-1272.09093329,0.00022899,7]
[361782131,1747775556662,-231.868955,0.00013699,2]
[361782132,1747775556684,-198.131045,0.0001512,2]
[361782134,1747775688576,-562.0,0.00014969,2]
[361782138,1747775972997,-409.84924793,0.00014819,2]
[361782140,1747776272320,-2923.40449487,0.00014969,2]
[361782141,1747776272342,-2.35477834,0.0001512,2]
[361782142,1747776272364,-300.0,0.00015176,2]
[361782143,1747776272388,-11831.24072679,0.00015177,2]
[361782156,1747776338031,-300.0,0.00015176,2]
[361782157,1747776338054,-300.0,0.00015176,2]
[361782158,1747776338076,-1200.0,0.00015176,2]
[361782159,1747776338098,-300.0,0.00015176,2]
[361782160,1747776338121,-13068.75927321,0.00015177,2]
[361782162,1747776338143,-4575.24072679,0.00015177,2]
[361782187,1747776473507,-4381.0,0.00015025,2]
[361782260,1747776632325,-619.0,0.00015025,2]
[361782261,1747776632335,-80.856,0.00015435,2]
[361782265,1747776632386,-419.144,0.00015435,2]
[361782266,1747776632396,-204.8082389,0.00015539,2]
[361782267,1747776632405,-178.806015,0.00015802,2]
[361782268,1747776632415,-500.0,0.00016247,2]
[361782270,1747776632425,-246.88492513,0.00016338,2]
[361782272,1747776632434,-480.0,0.00016437,2]
[361782273,1747776632444,-300.0,0.00016437,2]
[361782274,1747776632453,-430.0,0.00016438,2]
[361782276,1747776632462,-400.0,0.00016438,2]
[361782277,1747776632472,-221.64610395,0.00016438,2]
[361782278,1747776632482,-450.0,0.00016438,2]
[361782279,1747776632491,-430.0,0.00016438,2]
[361782280,1747776632501,-407.46546862,0.00016438,2]
[361782281,1747776632511,-450.0,0.00016438,2]
[361782282,1747776632520,-430.0,0.00016438,2]
[361782283,1747776632530,-430.0,0.00016438,2]
[361782284,1747776632540,-430.0,0.00016438,2]
[361782285,1747776632550,-430.0,0.00016438,2]
[361782286,1747776632560,-271.18,0.00016438,2]
[361782287,1747776632569,-450.0,0.00016438,2]
[361782288,1747776632579,-450.0,0.00016438,2]
[361782289,1747776632591,-375.60244509,0.00016438,2]
[361782290,1747776632601,-450.0,0.00016438,2]
[361782291,1747776632611,-500.0,0.00016438,2]
[361782292,1747776632621,-204.23657829,0.00016438,2]
[361782293,1747776632633,-152.60960254,0.00016438,2]
[361782294,1747776632642,-395.32360276,0.00016438,2]
[361782295,1747776632694,-34.67639724,0.00016438,2]
[361782296,1747776632705,-430.0,0.00016438,2]
[361782297,1747776632716,-450.0,0.00016438,2]
[361782298,1747776632727,-430.0,0.00016438,2]
[361782299,1747776632737,-430.0,0.00016438,2]
[361782300,1747776632747,-430.0,0.00016438,2]
[361782301,1747776632757,-450.0,0.00016438,2]
[361782302,1747776632767,-430.0,0.00016438,2]
[361782303,1747776632777,-450.0,0.00016438,2]
[361782304,1747776632787,-280.0,0.00016438,2]
[361782305,1747776632796,-430.0,0.00016438,2]
[361782306,1747776632806,-430.0,0.00016438,2]
[361782307,1747776632816,-845.26,0.00016438,2]
[361782308,1747776632825,-430.0,0.00016438,2]
[361782309,1747776632835,-430.0,0.00016438,2]
[361782310,1747776632845,-430.0,0.00016438,2]
[361782311,1747776632854,-430.0,0.00016438,2]
[361782312,1747776632864,-430.0,0.00016438,2]
[361782313,1747776632873,-430.0,0.00016438,2]
[361782314,1747776632883,-1270.68,0.00016438,2]
[361782315,1747776632893,-430.0,0.00016438,2]
[361782316,1747776632902,-430.0,0.00016438,2]
[361782317,1747776632912,-430.0,0.00016438,2]
[361782318,1747776632923,-430.0,0.00016438,2]
[361782319,1747776632932,-2639.7,0.00016438,2]
[361782320,1747776632942,-430.0,0.00016438,2]
[361782321,1747776632952,-430.0,0.00016438,2]
[361782322,1747776632961,-500.76372576,0.00016438,2]
[361782323,1747776632970,-430.0,0.00016438,2]
[361782325,1747776632980,-611.58,0.00016438,2]
[361782327,1747776632989,-444.59,0.00016438,2]
[361782329,1747776632999,-661.79,0.00016438,2]
[361782331,1747776633008,-430.0,0.00016438,2]
[361782333,1747776633018,-430.0,0.00016438,2]
[361782335,1747776633028,-430.0,0.00016438,2]
[361782337,1747776633037,-450.0,0.00016438,2]
[361782339,1747776633047,-430.0,0.00016438,2]
[361782340,1747776633056,-579.79,0.00016438,2]
[361782341,1747776633077,-430.0,0.00016438,2]
[361782342,1747776633090,-430.0,0.00016438,2]
[361782343,1747776633103,-430.0,0.00016438,2]
[361782344,1747776633116,-500.0,0.00016438,2]
[361782345,1747776633128,-430.0,0.00016438,2]
[361782346,1747776633140,-430.0,0.00016438,2]
[361782347,1747776633153,-430.0,0.00016438,2]
[361782348,1747776633166,-370.0,0.00016438,2]
[361782349,1747776633177,-430.0,0.00016438,2]
[361782350,1747776633188,-430.0,0.00016438,2]
[361782351,1747776633199,-430.0,0.00016438,2]
[361782352,1747776633210,-836.48,0.00016438,2]
[361782353,1747776633222,-461.59981371,0.00016438,2]
[361782354,1747776633234,-430.0,0.00016438,2]
[361782355,1747776633245,-430.0,0.00016438,2]
[361782356,1747776633257,-430.0,0.00016438,2]
[361782357,1747776633268,-442.6,0.00016438,2]
[361782358,1747776633279,-430.0,0.00016438,2]
[361782359,1747776633291,-430.0,0.00016438,2]
[361782360,1747776633302,-430.0,0.00016438,2]
[361782361,1747776633313,-430.0,0.00016438,2]
[361782362,1747776633325,-430.0,0.00016438,2]
[361782363,1747776633336,-400.0,0.00016438,2]
[361782364,1747776633347,-176.86667336,0.00016438,2]
[361782365,1747776633359,-430.0,0.00016438,2]
[361782366,1747776633370,-430.0,0.00016438,2]
[361782367,1747776633382,-400.0,0.00016438,2]
[361782368,1747776633395,-1901.72,0.00016438,2]
[361782369,1747776633407,-517.58028268,0.00016438,2]
[361782370,1747776633419,-1593.13,0.00016438,2]
[361782371,1747776633431,-430.0,0.00016438,2]
[361782372,1747776633443,-756.07,0.00016438,2]
[361782373,1747776633455,-430.0,0.00016438,2]
[361782374,1747776633467,-430.0,0.00016438,2]
[361782375,1747776633477,-183.86,0.00016438,2]
[361782376,1747776633489,-450.0,0.00016438,2]
[361782377,1747776633500,-430.0,0.00016438,2]
[361782378,1747776633514,-430.0,0.00016438,2]
[361782379,1747776633525,-486.77,0.00016438,2]
[361782380,1747776633537,-430.0,0.00016438,2]
[361782381,1747776633548,-430.0,0.00016438,2]
[361782382,1747776633560,-400.0,0.00016438,2]
[361782383,1747776633571,-430.0,0.00016438,2]
[361782384,1747776633582,-430.0,0.00016438,2]
[361782385,1747776633596,-430.0,0.00016438,2]
[361782386,1747776633609,-572.61096598,0.00016438,2]
[361782387,1747776633620,-430.0,0.00016438,2]
[361782388,1747776633631,-430.0,0.00016438,2]
[361782389,1747776633643,-779.03,0.00016438,2]
[361782390,1747776633655,-465.37,0.00016438,2]
[361782391,1747776633665,-255.14626982,0.00016438,2]
[361782392,1747776633676,-459.29675987,0.00016438,2]
[361782393,1747776633687,-430.0,0.00016438,2]
[361782394,1747776633702,-430.0,0.00016438,2]
[361782395,1747776633713,-263.0,0.00016438,2]
[361782396,1747776633725,-3482.81,0.00016438,2]
[361782397,1747776633737,-250.22320705,0.00016438,2]
[361782398,1747776633748,-261.37676094,0.00016569,2]
[361782399,1747776633759,-500.0,0.00016711,2]
[361782400,1747776633771,-500.0,0.00016711,2]
[361782401,1747776633782,-500.0,0.00016711,2]
[361782402,1747776633793,-500.0,0.00016711,2]
[361782403,1747776633804,-500.0,0.00016711,2]
[361782404,1747776633817,-500.0,0.00016711,2]
[361782405,1747776633828,-555.83047993,0.00016711,2]
[361782406,1747776633840,-173.41056725,0.00016711,2]
[361782407,1747776633851,-202.58000776,0.00016711,2]
[361782408,1747776633862,-284.12173205,0.00016711,2]
[361782409,1747776633874,-225.37831747,0.00016711,2]
[361782410,1747776633886,-500.0,0.00016711,2]
[361782411,1747776633898,-500.0,0.00016711,2]
[361782412,1747776633910,-500.0,0.00016711,2]
[361782413,1747776633923,-390.80529163,0.00016711,2]
[361782414,1747776633936,-500.0,0.00016711,2]
[361782415,1747776633947,-500.0,0.00016711,2]
[361782416,1747776633961,-500.0,0.00016711,2]
[361782417,1747776633972,-500.0,0.00016711,2]
[361782418,1747776633983,-500.0,0.00016711,2]
[361782419,1747776633994,-500.0,0.00016711,2]
[361782420,1747776634005,-500.0,0.00016711,2]
[361782421,1747776634015,-500.0,0.00016711,2]
[361782422,1747776634025,-500.0,0.00016711,2]
[361782423,1747776634035,-380.93968133,0.00016711,2]
[361782424,1747776634046,-430.0,0.00016712,2]
[361782425,1747776634058,-430.0,0.00016712,2]
[361782426,1747776634068,-430.0,0.00016712,2]
[361782427,1747776634081,-430.0,0.00016712,2]
[361782428,1747776634093,-500.0,0.00016712,2]
[361782429,1747776634105,-430.0,0.00016712,2]
[361782430,1747776634117,-450.0,0.00016712,2]
[361782431,1747776634129,-296.17,0.00016712,2]
[361782432,1747776634140,-430.0,0.00016712,2]
[361782433,1747776634151,-430.0,0.00016712,2]
[361782434,1747776634162,-430.0,0.00016712,2]
[361782435,1747776634173,-430.0,0.00016712,2]
[361782436,1747776634184,-845.26,0.00016712,2]
[361782437,1747776634195,-561.62010189,0.00016712,2]
[361782438,1747776634206,-430.0,0.00016712,2]
[361782439,1747776634218,-430.0,0.00016712,2]
[361782440,1747776634229,-1270.68,0.00016712,2]
[361782441,1747776634242,-430.0,0.00016712,2]
[361782442,1747776634254,-430.0,0.00016712,2]
[361782443,1747776634266,-2639.7,0.00016712,2]
[361782444,1747776634276,-430.0,0.00016712,2]
[361782445,1747776634287,-430.0,0.00016712,2]
[361782446,1747776634297,-430.0,0.00016712,2]
[361782447,1747776634308,-611.58,0.00016712,2]
[361782448,1747776634318,-178.46843917,0.00016712,2]
[361782449,1747776634328,-444.59,0.00016712,2]
[361782450,1747776634338,-661.79,0.00016712,2]
[361782451,1747776634349,-430.0,0.00016712,2]
[361782452,1747776634360,-430.0,0.00016712,2]
[361782453,1747776634371,-430.0,0.00016712,2]
[361782454,1747776634383,-430.0,0.00016712,2]
[361782455,1747776634394,-430.0,0.00016712,2]
[361782456,1747776634406,-280.0,0.00016712,2]
[361782457,1747776634418,-430.0,0.00016712,2]
[361782458,1747776634429,-500.0,0.00016712,2]
[361782459,1747776634441,-430.0,0.00016712,2]
[361782460,1747776634452,-430.0,0.00016712,2]
[361782461,1747776634464,-836.48,0.00016712,2]
[361782462,1747776634476,-430.0,0.00016712,2]
[361782463,1747776634488,-430.0,0.00016712,2]
[361782464,1747776634500,-430.0,0.00016712,2]
[361782465,1747776634516,-442.6,0.00016712,2]
[361782466,1747776634528,-430.0,0.00016712,2]
[361782467,1747776634540,-430.0,0.00016712,2]
[361782468,1747776634551,-430.0,0.00016712,2]
[361782469,1747776634563,-1901.72,0.00016712,2]
[361782470,1747776634575,-1593.13,0.00016712,2]
[361782471,1747776634590,-430.0,0.00016712,2]
[361782472,1747776634601,-756.07,0.00016712,2]
[361782473,1747776634611,-430.0,0.00016712,2]
[361782474,1747776634623,-430.0,0.00016712,2]
[361782475,1747776634634,-486.77,0.00016712,2]
[361782476,1747776634646,-430.0,0.00016712,2]
[361782477,1747776634658,-430.0,0.00016712,2]
[361782478,1747776634670,-430.0,0.00016712,2]
[361782479,1747776634682,-430.0,0.00016712,2]
[361782480,1747776634693,-779.03,0.00016712,2]
[361782481,1747776634704,-430.0,0.00016712,2]
[361782482,1747776634715,-430.0,0.00016712,2]
[361782483,1747776634728,-3482.81,0.00016712,2]
[361782484,1747776634740,-173.68154185,0.00016886,2]
[361782485,1747776634751,-430.0,0.00016986,2]
[361782486,1747776634763,-430.0,0.00016986,2]
[361782487,1747776634774,-368.58,0.00016986,2]
[361782488,1747776634785,-618.03591607,0.00016986,2]
[361782489,1747776634796,-430.0,0.00016986,2]
[361782490,1747776634807,-430.0,0.00016986,2]
[361782491,1747776634818,-345.87674074,0.00016986,2]
[361782492,1747776634829,-430.0,0.00016986,2]
[361782493,1747776634840,-430.0,0.00016986,2]
[361782494,1747776634851,-845.26,0.00016986,2]
[361782495,1747776634862,-502.85,0.00016986,2]
[361782496,1747776634873,-430.0,0.00016986,2]
[361782497,1747776634884,-1270.68,0.00016986,2]
[361782498,1747776634894,-430.0,0.00016986,2]
[361782499,1747776634906,-430.0,0.00016986,2]
[361782500,1747776634916,-2639.7,0.00016986,2]
[361782501,1747776634927,-224.00038747,0.00016986,2]
[361782502,1747776634938,-430.0,0.00016986,2]
[361782503,1747776634949,-430.0,0.00016986,2]
[361782504,1747776634959,-611.58,0.00016986,2]
[361782505,1747776634969,-444.59,0.00016986,2]
[361782506,1747776634979,-661.79,0.00016986,2]
[361782507,1747776634990,-430.0,0.00016986,2]
[361782508,1747776635001,-430.0,0.00016986,2]
[361782509,1747776635011,-430.0,0.00016986,2]
[361782510,1747776635021,-430.0,0.00016986,2]
[361782511,1747776635032,-430.0,0.00016986,2]
[361782512,1747776635042,-430.0,0.00016986,2]
[361782513,1747776635053,-500.0,0.00016986,2]
[361782514,1747776635063,-430.0,0.00016986,2]
[361782515,1747776635074,-430.0,0.00016986,2]
[361782516,1747776635084,-836.48,0.00016986,2]
[361782517,1747776635095,-430.0,0.00016986,2]
[361782518,1747776635106,-430.0,0.00016986,2]
[361782519,1747776635116,-430.0,0.00016986,2]
[361782520,1747776635127,-442.6,0.00016986,2]
[361782521,1747776635137,-430.0,0.00016986,2]
[361782522,1747776635147,-430.0,0.00016986,2]
[361782523,1747776635157,-496.54952823,0.00016986,2]
[361782524,1747776635168,-1901.72,0.00016986,2]
[361782525,1747776635179,-1593.13,0.00016986,2]
[361782526,1747776635190,-430.0,0.00016986,2]
[361782527,1747776635201,-756.07,0.00016986,2]
[361782528,1747776635212,-430.0,0.00016986,2]
[361782529,1747776635223,-486.77,0.00016986,2]
[361782530,1747776635233,-430.0,0.00016986,2]
[361782531,1747776635244,-430.0,0.00016986,2]
[361782532,1747776635255,-430.0,0.00016986,2]
[361782533,1747776635265,-430.0,0.00016986,2]
[361782534,1747776635276,-779.03,0.00016986,2]
[361782535,1747776635287,-430.0,0.00016986,2]
[361782536,1747776635298,-430.0,0.00016986,2]
[361782537,1747776635308,-3482.81,0.00016986,2]
[361782538,1747776635319,-500.0,0.00017102,2]
[361782539,1747776635330,-411.02397448,0.0001726,2]
[361782540,1747776635340,-430.0,0.0001726,2]
[361782541,1747776635351,-403.81921866,0.0001726,2]
[361782542,1747776635362,-430.0,0.0001726,2]
[361782543,1747776635373,-430.0,0.0001726,2]
[361782544,1747776635383,-430.0,0.0001726,2]
[361782545,1747776635395,-845.26,0.0001726,2]
[361782546,1747776635406,-430.0,0.0001726,2]
[361782547,1747776635417,-1270.68,0.0001726,2]
[361782548,1747776635428,-395.07613095,0.0001726,2]
[361782549,1747776635438,-430.0,0.0001726,2]
[361782550,1747776635449,-2639.7,0.0001726,2]
[361782551,1747776635461,-430.0,0.0001726,2]
[361782552,1747776635472,-430.0,0.0001726,2]
[361782553,1747776635484,-611.58,0.0001726,2]
[361782554,1747776635496,-444.59,0.0001726,2]
[361782555,1747776635510,-661.79,0.0001726,2]
[361782556,1747776635789,-430.0,0.0001726,2]
[361782557,1747776635800,-430.0,0.0001726,2]
[361782558,1747776635810,-430.0,0.0001726,2]
[361782559,1747776635820,-430.0,0.0001726,2]
[361782560,1747776635830,-430.0,0.0001726,2]
[361782561,1747776635841,-430.0,0.0001726,2]
[361782562,1747776635851,-430.0,0.0001726,2]
[361782563,1747776635861,-430.0,0.0001726,2]
[361782564,1747776635871,-836.48,0.0001726,2]
[361782565,1747776635881,-430.0,0.0001726,2]
[361782566,1747776635892,-430.0,0.0001726,2]
[361782567,1747776635902,-430.0,0.0001726,2]
[361782568,1747776635912,-442.6,0.0001726,2]
[361782569,1747776635924,-430.0,0.0001726,2]
[361782570,1747776635935,-430.0,0.0001726,2]
[361782571,1747776635945,-1901.72,0.0001726,2]
[361782572,1747776635955,-1593.13,0.0001726,2]
[361782573,1747776635965,-430.0,0.0001726,2]
[361782574,1747776635975,-756.07,0.0001726,2]
[361782575,1747776635984,-430.0,0.0001726,2]
[361782576,1747776635993,-486.77,0.0001726,2]
[361782577,1747776636003,-430.0,0.0001726,2]
[361782578,1747776636012,-411.16659005,0.0001726,2]
[361782579,1747776636022,-430.0,0.0001726,2]
[361782580,1747776636031,-430.0,0.0001726,2]
[361782581,1747776636041,-779.03,0.0001726,2]
[361782582,1747776636050,-430.0,0.0001726,2]
[361782583,1747776636060,-430.0,0.0001726,2]
[361782584,1747776636069,-3482.81,0.0001726,2]
[361782585,1747776636079,-500.0,0.00017372,2]
[361782586,1747776636089,-500.0,0.00017374,2]
[361782587,1747776636099,-500.0,0.00017374,2]
[361782588,1747776636110,-500.0,0.00017374,2]
[361782589,1747776636120,-500.0,0.00017388,2]
[361782590,1747776636129,-500.0,0.00017424,2]
[361782591,1747776636139,-500.0,0.00017424,2]
[361782592,1747776636149,-500.0,0.00017424,2]
[361782593,1747776636158,-500.0,0.00017424,2]
[361782594,1747776636168,-500.0,0.00017424,2]
[361782595,1747776636178,-500.0,0.00017429,2]
[361782596,1747776636188,-500.0,0.00017429,2]
[361782597,1747776636198,-500.0,0.00017429,2]
[361782598,1747776636208,-500.0,0.00017429,2]
[361782599,1747776636218,-500.0,0.00017444,2]
[361782600,1747776636228,-500.0,0.00017444,2]
[361782601,1747776636238,-500.0,0.00017489,2]
[361782602,1747776636248,-160.0,0.00017527,2]
[361782603,1747776636258,-894.64583333,0.00017527,2]
[361782604,1747776636268,-160.0,0.00017528,2]
[361782605,1747776636277,-160.0,0.00017528,2]